bitfinex/quotes_BTCUSD_20241201
["timestamp","ask_amount","ask_price","bid_price","bid_amount"]
[1733065573401,0.0017278,97292.0,97291.0,0.24324601]
[1733065573868,0.0027278,97292.0,97291.0,0.24524601]
[1733065574091,0.0017278,97292.0,97291.0,0.24324601]
[1733065574348,0.0027278,97292.0,97291.0,0.24524601]
[1733065574590,0.0017276,97298.0,97297.0,0.344556]
[1733065574858,0.0017276,97298.0,97297.0,0.44740121]
[1733065575812,0.00017812,97307.0,97306.0,0.344537]
[1733065576060,0.00017812,97307.0,97306.0,0.44738221]
[1733065577569,0.00117812,97307.0,97306.0,0.44938221]
[1733065579890,0.00117812,97307.0,97306.0,0.45238221]
[1733065580137,0.00217812,97307.0,97306.0,0.45238221]
[1733065581736,0.00390572,97307.0,97306.0,0.45238221]
[1733065583820,0.00390572,97307.0,97306.0,0.44238221]
[1733065584087,0.00390572,97307.0,97306.0,0.23684521]
[1733065587212,0.00390572,97307.0,97306.0,0.24684521]
[1733065587464,0.00390572,97307.0,97306.0,0.40580736]
[1733065588415,0.00290572,97307.0,97306.0,0.43573711]
[1733065589144,0.00190572,97307.0,97306.0,0.43273711]
[1733065589427,0.001729,97317.0,97316.0,0.50007815]
[1733065589673,0.001729,97317.0,97316.0,0.60292336]
[1733065589674,0.00178844,97317.0,97316.0,0.60292336]
[1733065591070,0.00178844,97317.0,97316.0,0.61192336]
[1733065591308,0.00278844,97317.0,97316.0,0.61192336]
[1733065591535,0.00278844,97317.0,97316.0,0.64384667]
[1733065593176,0.00378844,97317.0,97316.0,0.65184667]
[1733065593400,0.00378844,97317.0,97316.0,0.61096121]
[1733065593630,0.00378844,97317.0,97316.0,0.60096121]
[1733065594104,0.00378844,97317.0,97316.0,0.61096121]
[1733065594319,0.00378844,97317.0,97316.0,0.46096121]
[1733065596476,0.00378844,97317.0,97316.0,0.48133941]
[1733065598398,0.00378844,97317.0,97316.0,0.51330058]
[1733065606941,0.00378844,97317.0,97316.0,0.50330058]
[1733065607185,0.00378844,97317.0,97316.0,0.51330058]
[1733065609092,0.00378844,97317.0,97316.0,0.50330058]
[1733065609313,0.00378844,97317.0,97316.0,0.51330058]
[1733065610953,0.00378844,97317.0,97316.0,0.50330058]
[1733065611406,0.00378844,97317.0,97316.0,0.51330058]
[1733065611878,0.00378844,97317.0,97316.0,0.17108458]
[1733065612079,0.00378844,97317.0,97316.0,0.13912341]
[1733065612563,0.00378844,97317.0,97316.0,0.017]
[1733065613466,0.00278844,97317.0,97316.0,0.009]
[1733065613722,0.05162629,97317.0,97316.0,0.009]
[1733065613945,0.05162629,97317.0,97316.0,0.012]
[1733065614873,0.05062629,97317.0,97316.0,0.003]
[1733065615327,0.616548,97316.0,97307.0,0.07263737]
[1733065615553,0.05162629,97317.0,97316.0,0.007]
[1733065615759,0.05062629,97317.0,97316.0,0.003]
[1733065616190,0.05062629,97317.0,97316.0,0.005]
[1733065616412,0.05062629,97317.0,97316.0,0.003]
[1733065616631,0.0776,97316.0,97307.0,0.0008637]
[1733065616856,0.20656985,97308.0,97307.0,0.0008637]
[1733065620003,0.20656985,97308.0,97307.0,0.0038637]
[1733065621605,0.00103785,97308.0,97307.0,0.0038637]
[1733065622757,0.00103785,97311.0,97307.0,0.0038637]
[1733065622994,0.04958844,97317.0,97307.0,0.00568237]
[1733065622995,0.00103785,97314.0,97307.0,0.00568237]
[1733065623204,0.00103785,97315.0,97308.0,0.00181865]
[1733065623421,0.00103785,97315.0,97309.0,0.20734861]
[1733065623654,0.00178844,97317.0,97314.0,0.20552]
[1733065623871,0.00178844,97317.0,97315.0,0.00181851]
[1733065624104,0.00178844,97317.0,97316.0,0.20733449]
[1733065624519,0.00178844,97317.0,97316.0,0.3101797]
[1733065624735,0.00178844,97317.0,97316.0,0.30836121]
[1733065626490,0.00178844,97317.0,97316.0,0.31236121]
[1733065627160,0.00278844,97317.0,97316.0,0.31736121]
[1733065627397,0.00378844,97317.0,97316.0,0.32236121]
[1733065627828,0.00378844,97317.0,97316.0,0.33236121]
[1733065632739,0.00378844,97317.0,97316.0,0.41476121]
[1733065633402,0.00378844,97317.0,97316.0,0.42372336]
[1733065633623,0.00378844,97317.0,97316.0,0.45571606]
[1733065633846,0.00378844,97317.0,97316.0,0.42372336]
[1733065634557,0.00278844,97317.0,97316.0,0.41872336]
[1733065634762,0.00278844,97317.0,97316.0,0.42672336]
[1733065634984,0.00278844,97317.0,97316.0,0.44971646]
[1733065635250,0.00378844,97317.0,97316.0,0.45871646]
[1733065646038,0.00378844,97317.0,97316.0,0.42672336]
[1733065646285,0.00378844,97317.0,97316.0,0.45870506]
[1733065646488,0.00378844,97317.0,97316.0,0.50410506]
[1733065648628,0.00378844,97317.0,97316.0,0.67710506]
[1733065648847,4.4e-07,97317.0,97316.0,0.67710506]
[1733065649718,4.4e-07,97317.0,97316.0,0.66910506]
[1733065649931,0.0017284,97351.0,97350.0,0.292844]
[1733065650150,0.00182007,97351.0,97350.0,0.39568921]
[1733065651994,0.00182007,97351.0,97350.0,0.32628921]
[1733065652865,0.00182007,97351.0,97350.0,0.33525136]
[1733065653108,0.00182007,97351.0,97350.0,0.33825136]
[1733065653321,0.00182007,97351.0,97350.0,0.46105136]
[1733065653532,0.00182007,97351.0,97350.0,0.4929752]
[1733065653754,0.00182007,97351.0,97350.0,0.50113429]
[1733065653973,0.00182007,97351.0,97350.0,0.50613429]
[1733065654185,0.00182007,97351.0,97350.0,0.49813429]
[1733065654660,0.00182007,97351.0,97350.0,0.50713429]
[1733065654882,0.00182007,97351.0,97350.0,0.49813429]
[1733065655335,0.00182007,97351.0,97350.0,0.49413429]
[1733065655794,0.00182007,97351.0,97350.0,0.67613429]
[1733065656010,0.00182007,97351.0,97350.0,0.67513429]
[1733065656227,0.00182007,97351.0,97350.0,0.66613429]
[1733065656676,0.00682007,97351.0,97350.0,0.66613429]
[1733065657112,0.00182007,97351.0,97350.0,0.66613429]
[1733065657534,0.00182007,97351.0,97350.0,0.67513429]
[1733065657747,0.00182007,97351.0,97350.0,0.63421045]
[1733065658208,0.00182007,97351.0,97350.0,0.64411011]
[1733065658483,0.00182007,97351.0,97350.0,0.61121045]
[1733065659018,0.00182007,97351.0,97350.0,0.62021045]
[1733065659237,0.00782007,97351.0,97350.0,0.61121045]
[1733065659468,0.00782007,97351.0,97350.0,0.62021045]
[1733065659700,0.00182007,97351.0,97350.0,0.62021045]
[1733065660353,0.00282007,97351.0,97350.0,0.62921045]
[1733065664512,0.00282007,97351.0,97350.0,0.66110154]
[1733065664732,0.00282007,97351.0,97350.0,0.62921045]
[1733065664957,0.00282007,97351.0,97350.0,0.6610997]
[1733065665172,0.00282007,97351.0,97350.0,0.62921045]
[1733065666071,0.00282007,97351.0,97350.0,0.50641045]
[1733065666595,0.00282007,97351.0,97350.0,0.58951045]
[1733065666817,0.00282007,97351.0,97350.0,0.62140973]
[1733065667254,0.00282007,97351.0,97350.0,0.58951045]
[1733065669270,0.00282007,97351.0,97350.0,0.62141413]
[1733065669964,0.00282007,97351.0,97350.0,0.58951045]
[1733065670625,0.00282007,97351.0,97350.0,0.62142069]
[1733065673486,0.00282007,97351.0,97350.0,0.66253469]
[1733065678249,0.00282007,97351.0,97350.0,0.57943469]
[1733065678486,0.00282007,97351.0,97350.0,0.19386945]
[1733065678711,0.07972007,97351.0,97350.0,0.12084521]
[1733065679889,0.00182007,97351.0,97350.0,0.10284521]
[1733065680108,0.00182007,97351.0,97350.0,0.11066307]
[1733065680342,0.00182007,97351.0,97350.0,0.11784521]
[1733065680804,0.00182007,97351.0,97350.0,0.11966308]
[1733065682652,0.00182007,97351.0,97350.0,0.15168122]
[1733065685538,0.00182007,97351.0,97350.0,0.16064337]
[1733065686091,0.00182007,97351.0,97350.0,0.40014337]
[1733065686324,0.00182007,97351.0,97350.0,0.3983255]
[1733065687676,0.00182007,97351.0,97350.0,0.3188255]
[1733065687889,0.00182007,97351.0,97350.0,0.30986335]
[1733065688110,0.00182007,97351.0,97350.0,0.3188255]
[1733065688585,0.00182007,97351.0,97350.0,0.3983255]
[1733065688810,0.00182007,97351.0,97350.0,0.3188255]
[1733065690858,0.00182007,97351.0,97350.0,0.32972856]
[1733065692271,0.00182007,97351.0,97350.0,0.31076641]
[1733065692721,0.00182007,97351.0,97350.0,0.32076641]
[1733065693588,0.00182007,97351.0,97350.0,0.30986335]
[1733065694255,0.00182007,97351.0,97350.0,0.29986335]
[1733065694474,0.00182007,97351.0,97350.0,0.30986335]
[1733065695864,0.00182007,97351.0,97350.0,0.29986335]
[1733065696080,0.00182007,97351.0,97350.0,0.30986335]
[1733065697555,0.00182007,97351.0,97350.0,0.38626335]
[1733065697766,0.00182007,97351.0,97350.0,0.30986335]
[1733065698192,0.00182007,97351.0,97350.0,0.29986335]
[1733065698401,0.00182007,97351.0,97350.0,0.30986335]
[1733065698836,0.00182007,97351.0,97350.0,0.14986335]
[1733065699047,0.00182007,97351.0,97350.0,0.15168111]
[1733065701060,0.00182007,97351.0,97350.0,0.14986335]
[1733065701282,0.00182007,97351.0,97350.0,0.15168106]
[1733065740963,0.00182007,97351.0,97350.0,0.14624812]
[1733065742103,0.00182007,97351.0,97350.0,0.22284812]
[1733065742346,0.00182007,97351.0,97350.0,0.22103041]
[1733065744247,0.00182007,97351.0,97350.0,0.22189421]
[1733065751610,0.00182007,97351.0,97350.0,0.23085636]
[1733065754154,0.00182007,97351.0,97350.0,0.45305636]
[1733065755086,0.00182007,97351.0,97350.0,0.44705636]
[1733065755278,0.00282007,97351.0,97350.0,0.44705636]
[1733065755499,0.00282007,97351.0,97350.0,0.45605636]
[1733065756491,0.00282007,97351.0,97350.0,1.15605636]
[1733065758686,0.00282007,97351.0,97350.0,0.45605636]
[1733065761088,7e-08,97351.0,97350.0,0.45605636]
[1733065761309,0.0017284,97360.0,97359.0,0.36658715]
[1733065761554,0.0017284,97360.0,97359.0,0.5014505]
[1733065762894,0.0017284,97360.0,97359.0,0.5104505]
[1733065763537,0.0017284,97360.0,97359.0,0.5174505]
[1733065764174,0.0017284,97360.0,97359.0,0.6674505]
[1733065767068,0.0017284,97360.0,97359.0,0.68751305]
[1733065767297,0.0017284,97360.0,97359.0,0.69856059]
[1733065770741,0.0017282,97370.0,97369.0,0.29436615]
[1733065770958,0.0017282,97370.0,97369.0,0.4292295]
[1733065772053,0.0017282,97370.0,97369.0,0.4332295]
[1733065774055,0.0017282,97370.0,97369.0,0.4422295]
[1733065776776,0.0017282,97370.0,97369.0,0.45345206]
[1733065783170,0.0017282,97370.0,97369.0,0.47645206]
[1733065783427,0.0017282,97370.0,97369.0,0.52265206]
[1733065784378,0.0017282,97370.0,97369.0,0.51865206]
[1733065784847,0.0027282,97370.0,97369.0,0.51065206]
[1733065785081,0.0027282,97370.0,97369.0,0.51165206]
[1733065786097,0.0027282,97370.0,97369.0,0.48865206]
[1733065786571,0.0027282,97370.0,97369.0,1.18865206]
[1733065787268,0.0027282,97370.0,97369.0,1.33865206]
[1733065787708,0.0027282,97370.0,97369.0,1.36165206]
[1733065789274,0.0027282,97370.0,97369.0,1.36065206]
[1733065789498,0.0017282,97370.0,97369.0,1.36065206]
[1733065790221,0.0017278,97395.0,97389.0,0.205362]
[1733065790438,0.0017278,97395.0,97389.0,0.34204244]
[1733065790663,0.0017278,97395.0,97389.0,0.34022535]
[1733065791513,0.00232268,97390.0,97389.0,0.34622535]
[1733065792424,0.12792268,97390.0,97389.0,0.35522535]
[1733065793075,0.12792268,97390.0,97389.0,0.32320721]
[1733065793296,0.12792268,97390.0,97389.0,0.35518048]
[1733065793947,0.12792268,97390.0,97389.0,0.32320721]
[1733065794804,0.12792268,97390.0,97389.0,0.11784521]
[1733065795662,0.12792268,97390.0,97389.0,0.10884521]
[1733065796073,0.12792268,97390.0,97389.0,0.11684521]
[1733065796507,0.12792268,97390.0,97389.0,0.10284521]
[1733065796945,0.12792268,97390.0,97389.0,0.11084521]
[1733065797398,0.12792268,97390.0,97389.0,0.11384521]
[1733065797884,0.12792268,97390.0,97389.0,0.11084521]
[1733065798141,0.12792268,97390.0,97389.0,0.11384521]
[1733065801591,0.12792268,97390.0,97389.0,0.11084521]
[1733065802064,0.12792268,97390.0,97389.0,0.10284521]
[1733065802534,0.05122268,97390.0,97389.0,0.11084521]
[1733065802767,0.05122268,97390.0,97389.0,0.10466251]
[1733065803033,0.00232268,97390.0,97389.0,0.10284521]
[1733065803246,0.00232268,97390.0,97389.0,0.11084521]
[1733065803468,0.00232268,97390.0,97389.0,0.10284521]
[1733065803689,0.00232268,97390.0,97389.0,0.1076624]
[1733065803946,0.00232268,97390.0,97389.0,0.14765006]
[1733065804178,0.00232268,97390.0,97389.0,0.14465006]
[1733065804439,0.00232268,97390.0,97389.0,0.14765006]
[1733065804707,0.00232268,97390.0,97389.0,0.1156624]
[1733065804932,0.00232268,97390.0,97389.0,0.1126624]
[1733065805220,0.00232268,97390.0,97389.0,0.14464917]
[1733065805658,0.00232268,97390.0,97389.0,0.14264917]
[1733065806085,0.00232268,97390.0,97389.0,0.14883198]
[1733065806322,0.00232268,97390.0,97389.0,0.15064916]
[1733065806576,0.00232268,97390.0,97389.0,0.14264916]
[1733065807041,0.00232268,97390.0,97389.0,0.15164916]
[1733065809895,0.04832268,97390.0,97389.0,0.14983198]
[1733065817895,0.04832268,97390.0,97389.0,0.11784521]
[1733065818931,0.00232268,97390.0,97389.0,0.14984169]
[1733065820557,0.00232268,97390.0,97389.0,0.15165897]
[1733065820859,0.00232268,97390.0,97389.0,0.14984169]
[1733065821112,0.00232268,97390.0,97389.0,0.15165897]
[1733065824119,0.00232268,97390.0,97389.0,0.22985892]
[1733065824361,0.00232268,97390.0,97389.0,0.27664169]
[1733065825551,0.00232268,97390.0,97389.0,0.33549468]
[1733065825793,0.00232268,97390.0,97389.0,0.27664169]
[1733065828770,0.00232268,97390.0,97389.0,0.28739502]
[1733065830508,0.00232268,97390.0,97389.0,0.29635717]
[1733065831451,0.00232268,97390.0,97389.0,0.28135717]
[1733065831658,0.00232268,97390.0,97389.0,0.28735717]
[1733065831868,0.00232268,97390.0,97389.0,0.29635717]
[1733065832300,0.00232268,97390.0,97389.0,0.29035717]
[1733065832510,0.00232268,97390.0,97389.0,0.29935717]
[1733065833348,0.00232268,97390.0,97389.0,0.29035717]
[1733065834416,0.00232268,97390.0,97389.0,0.29935717]
[1733065835711,0.00232268,97390.0,97389.0,0.33645066]
[1733065835914,0.00232268,97390.0,97389.0,0.37140383]
[1733065837455,0.00232268,97390.0,97389.0,0.39440383]
[1733065837880,0.00232268,97390.0,97389.0,0.35945066]
[1733065838102,0.00232268,97390.0,97389.0,0.50945066]
[1733065838314,0.00232268,97390.0,97389.0,0.54440383]
[1733065840904,0.00232268,97390.0,97389.0,0.50945066]
[1733065841548,0.00232268,97390.0,97389.0,0.47235717]
[1733065845136,0.00232268,97390.0,97389.0,0.50945066]
[1733065849311,0.00232268,97390.0,97389.0,0.47235717]
[1733065858578,0.00232268,97390.0,97389.0,0.34555717]
[1733065859302,0.00232268,97390.0,97389.0,0.31359502]
[1733065859765,0.12962268,97390.0,97389.0,0.31359502]
[1733065859982,0.04862268,97390.0,97389.0,0.31359502]
[1733065860416,0.12962268,97390.0,97389.0,0.15284169]
[1733065860855,0.12962268,97390.0,97383.0,0.205373]
[1733065861077,0.12962268,97390.0,97383.0,0.10284521]
[1733065861078,0.081,97389.0,97383.0,0.10284521]
[1733065861291,0.081,97387.0,97383.0,0.10284521]
[1733065861535,0.0463,97386.0,97383.0,0.10284521]
[1733065861755,0.081,97385.0,97372.0,0.205397]
[1733065861969,0.081,97385.0,97336.0,0.041121]
[1733065861970,0.1273,97376.0,97355.0,0.02076897]
[1733065862181,0.081,97374.0,97358.0,0.225426]
[1733065862430,0.0463,97366.0,97360.0,0.07266375]
[1733065862671,0.205412,97365.0,97360.0,0.0008637]
[1733065862880,0.00103785,97365.0,97358.0,0.02]
[1733065863103,0.00103785,97359.0,97358.0,0.02]
[1733065863327,0.04733785,97359.0,97358.0,0.02]
[1733065863545,0.205427,97358.0,97338.0,0.410936]
[1733065863755,0.205431,97356.0,97349.0,0.07180005]
[1733065863964,0.00181728,97355.0,97349.0,0.07180005]
[1733065864205,0.00181728,97357.0,97349.0,0.07180005]
[1733065864419,0.081,97355.0,97345.0,0.07180005]
[1733065864655,0.081,97355.0,97350.0,0.00095547]
[1733065864863,0.081,97355.0,97350.0,0.00195547]
[1733065865282,0.081,97355.0,97350.0,0.00095547]
[1733065865775,0.081,97355.0,97351.0,0.205442]
[1733065866237,0.081,97355.0,97350.0,0.00195547]
[1733065866456,0.081,97355.0,97350.0,0.00495547]
[1733065866697,0.081,97355.0,97350.0,0.00195547]
[1733065867366,0.081,97355.0,97351.0,0.003]
[1733065869405,0.081,97355.0,97350.0,0.00095547]
[1733065869671,0.081,97355.0,97351.0,0.002]
[1733065870615,0.081,97355.0,97351.0,0.20744]
[1733065870839,0.081,97355.0,97351.0,0.21144]
[1733065871080,0.081,97355.0,97351.0,0.20944]
[1733065871542,0.0463,97359.0,97358.0,0.205427]
[1733065872731,0.0463,97359.0,97352.0,0.41088]
[1733065872949,0.0463,97359.0,97358.0,0.002]
[1733065873637,0.0463,97359.0,97351.0,0.20744]
[1733065873873,0.00103785,97356.0,97351.0,0.002]
[1733065874091,0.00103785,97356.0,97352.0,0.002]
[1733065874308,0.00103785,97356.0,97351.0,0.002]
[1733065874528,0.00103785,97356.0,97350.0,0.00095547]
[1733065875843,0.00103785,97356.0,97350.0,0.00195547]
[1733065876050,0.00103785,97356.0,97350.0,0.20739747]
[1733065876256,0.00103785,97356.0,97350.0,0.21139747]
[1733065876754,0.00103785,97356.0,97350.0,0.41684147]
[1733065877013,0.0463,97359.0,97350.0,0.00595547]
[1733065877239,0.0463,97359.0,97355.0,0.205431]
[1733065877459,0.04733785,97359.0,97355.0,0.205431]
[1733065877672,0.0463,97359.0,97356.0,0.205431]
[1733065878346,0.00103785,97356.0,97351.0,0.205442]
[1733065880033,0.00103785,97356.0,97351.0,0.206442]
[1733065880454,0.00103785,97356.0,97351.0,0.210442]
[1733065882934,0.00103785,97356.0,97351.0,0.415884]
[1733065883389,0.00103785,97366.0,97353.0,0.205437]
[1733065883607,0.00103785,97363.0,97362.0,0.205418]
[1733065884247,0.047,97369.0,97360.0,0.10942623]
[1733065884469,0.047,97369.0,97351.0,0.005]
[1733065884470,0.00103785,97369.0,97368.0,0.205406]
[1733065884686,0.00103785,97371.0,97368.0,0.205406]
[1733065884902,0.0486,97378.0,97360.0,0.00181786]
[1733065884903,0.00103785,97374.0,97360.0,0.00181786]
[1733065885116,0.00103785,97374.0,97371.0,0.205399]
[1733065886009,0.00103785,97374.0,97371.0,0.410798]
[1733065886219,0.0805,97379.0,97376.0,0.205389]
[1733065886220,0.00103785,97379.0,97376.0,0.205389]
[1733065886867,0.00103785,97378.0,97376.0,0.205389]
[1733065887113,0.00103785,97381.0,97376.0,0.205389]
[1733065887320,0.00103785,97382.0,97381.0,0.205378]
[1733065887529,0.00103785,97382.0,97376.0,0.205389]
[1733065888029,0.002,97379.0,97376.0,0.205389]
[1733065888253,0.00285513,97382.0,97376.0,0.205389]
[1733065888490,0.00103785,97382.0,97376.0,0.206389]
[1733065888707,0.00121621,97382.0,97376.0,0.206389]
[1733065888916,0.00103785,97378.0,97376.0,0.001]
[1733065889148,0.00103785,97377.0,97376.0,0.001]
[1733065889587,0.00103785,97377.0,97376.0,0.002]
[1733065889803,0.00103785,97377.0,97376.0,0.001]
[1733065890017,0.00103785,97377.0,97372.0,0.205397]
[1733065890230,0.00103785,97377.0,97376.0,0.001]
[1733065891315,0.00103785,97377.0,97376.0,0.004]
[1733065891734,0.00103785,97377.0,97376.0,0.001]
[1733065893361,0.00103785,97377.0,97371.0,0.205398]
[1733065893605,0.00103785,97377.0,97376.0,0.001]
[1733065894096,0.00103785,97377.0,97373.0,0.205394]
[1733065894610,0.00103785,97377.0,97376.0,0.003]
[1733065895076,0.00276585,97377.0,97376.0,0.003]
[1733065896369,0.00276585,97377.0,97376.0,0.01]
[1733065908816,0.05048313,97377.0,97376.0,0.01]
[1733065909762,0.05048313,97377.0,97376.0,0.003]
[1733065909959,0.05048313,97377.0,97376.0,0.004]
[1733065911218,0.05048313,97377.0,97376.0,0.001]
[1733065911675,0.05048313,97377.0,97376.0,0.004]
[1733065912438,0.05048313,97377.0,97376.0,0.001]
[1733065913416,0.410778,97376.0,97367.0,0.07177419]
[1733065913677,0.205393,97374.0,97367.0,0.07177419]
[1733065913933,0.00181728,97373.0,97363.0,0.205415]
[1733065914410,0.00181728,97373.0,97367.0,0.205406]
[1733065914900,0.00181728,97376.0,97367.0,0.001]
[1733065915157,0.00181728,97375.0,97367.0,0.001]
[1733065915626,0.205393,97374.0,97367.0,0.001]
[1733065915861,0.205397,97372.0,97367.0,0.001]
[1733065916081,0.00181728,97371.0,97367.0,0.001]
[1733065916577,0.205402,97370.0,97367.0,0.001]
[1733065916851,0.00181728,97369.0,97367.0,0.001]
[1733065917341,0.205406,97368.0,97360.0,0.14354838]
[1733065917567,0.00181728,97367.0,97363.0,0.002]
[1733065917819,0.00103785,97365.0,97363.0,0.002]
[1733065918041,0.205414,97364.0,97358.0,0.000864]
[1733065918304,0.00181728,97363.0,97358.0,0.000864]
[1733065918559,0.00103785,97365.0,97358.0,0.000864]
[1733065919260,0.20826913,97364.0,97363.0,0.003]
[1733065919477,0.25746913,97364.0,97363.0,0.003]
[1733065919696,0.25565185,97364.0,97363.0,0.003]
[1733065921012,0.05023785,97364.0,97358.0,0.000864]
[1733065921231,0.205425,97359.0,97358.0,0.000864]
[1733065921659,0.20646285,97359.0,97358.0,0.000864]
[1733065922543,0.00103785,97359.0,97358.0,0.004864]
[1733065923453,0.00103785,97359.0,97358.0,0.000864]
[1733065923670,0.00103785,97359.0,97358.0,0.001864]
[1733065925188,0.00103785,97359.0,97358.0,0.000864]
[1733065925413,0.00103785,97359.0,97358.0,0.002864]
[1733065925625,0.00103785,97359.0,97358.0,0.003864]
[1733065925841,0.00103785,97359.0,97358.0,0.001864]
[1733065926095,0.00103785,97359.0,97358.0,0.000864]
[1733065926308,0.00103785,97359.0,97358.0,0.004864]
[1733065926591,0.00103785,97359.0,97358.0,0.001864]
[1733065926814,0.00103785,97359.0,97358.0,0.000864]
[1733065927074,0.00103785,97359.0,97358.0,0.005864]
[1733065927281,0.00103785,97359.0,97358.0,0.007864]
[1733065928195,0.00103785,97363.0,97358.0,0.007864]
[1733065928412,0.20538,97381.0,97358.0,0.007864]
[1733065928413,0.0492,97384.0,97359.0,0.0815]
[1733065928636,0.00103785,97376.0,97371.0,0.0815]
[1733065928861,0.00103785,97373.0,97372.0,0.205397]
[1733065929123,0.00103785,97373.0,97371.0,0.0815]
[1733065930456,0.00103785,97374.0,97371.0,0.0815]
[1733065930683,0.00103785,97374.0,97372.0,0.005]
[1733065930900,0.00103785,97374.0,97371.0,0.0815]
[1733065930901,0.00276585,97377.0,97371.0,0.0815]
[1733065931119,0.001728,97377.0,97373.0,0.410789]
[1733065932488,0.00103785,97376.0,97373.0,0.43151564]
[1733065932697,0.001728,97377.0,97373.0,0.43351564]
[1733065933122,0.00103785,97376.0,97373.0,0.43351564]
[1733065933338,0.001728,97377.0,97373.0,0.43451564]
[1733065933976,0.001728,97377.0,97375.0,0.205391]
[1733065934452,0.001728,97377.0,97376.0,0.0833]
[1733065935778,0.001728,97377.0,97376.0,0.18614521]
[1733065936912,0.001728,97377.0,97376.0,0.19014521]
[1733065937804,0.001728,97377.0,97376.0,0.19214521]
[1733065942223,0.001728,97377.0,97376.0,0.0893]
[1733065952056,0.001728,97377.0,97376.0,0.006]
[1733065962438,0.001728,97377.0,97376.0,0.03795085]
[1733065964998,0.001728,97377.0,97376.0,0.14079606]
[1733065965207,0.001728,97377.0,97376.0,0.22031367]
[1733065965452,0.001728,97377.0,97376.0,0.21849606]
[1733065966168,0.001728,97377.0,97376.0,0.21249606]
[1733065966352,0.001728,97377.0,97376.0,0.21649606]
[1733065966597,0.001728,97377.0,97376.0,0.22449606]
[1733065969726,0.001728,97377.0,97376.0,0.23548482]
[1733065981518,0.001728,97377.0,97376.0,0.43268482]
[1733065981761,0.001728,97386.0,97377.0,0.560774]
[1733065982017,0.001728,97386.0,97380.0,0.15]
[1733065982236,0.001728,97386.0,97381.0,0.1366134]
[1733065982455,0.001728,97386.0,97381.0,0.5693914]
[1733065982670,0.001728,97386.0,97381.0,0.61477406]
[1733065983347,0.001728,97386.0,97381.0,1.31477406]
[1733065984667,0.001728,97386.0,97381.0,1.33534046]
[1733065985560,0.001728,97386.0,97381.0,1.33634046]
[1733065986000,0.001728,97386.0,97381.0,1.34534046]
[1733065986217,0.001728,97386.0,97381.0,1.33634046]
[1733065986475,0.001728,97386.0,97381.0,1.33734046]
[1733065986697,0.001728,97386.0,97381.0,1.33634046]
[1733065986933,0.001728,97386.0,97381.0,1.33534046]
[1733065987189,0.001728,97386.0,97381.0,1.33634046]
[1733065988062,0.001728,97386.0,97381.0,1.21174046]
[1733065988755,0.001728,97386.0,97381.0,1.06174046]
[1733065989011,0.001728,97386.0,97381.0,0.85636246]
[1733065989261,0.001728,97386.0,97381.0,0.85536246]
[1733065989482,0.001728,97386.0,97381.0,0.83479606]
[1733065989483,0.12757836,97382.0,97381.0,0.83479606]
[1733065989712,0.12861621,97382.0,97381.0,0.001]
[1733065990215,0.12861621,97382.0,97360.0,0.07177419]
[1733065990216,0.00103785,97367.0,97350.0,0.0008638]
[1733065990433,0.00103785,97367.0,97360.0,0.80373472]
[1733065990665,0.00103785,97367.0,97360.0,0.77177419]
[1733065990904,0.1274,97366.0,97360.0,0.7]
[1733065991124,0.1274,97366.0,97357.0,0.07177419]
[1733065991125,0.00103785,97364.0,97357.0,0.07177419]
[1733065991353,0.1274,97366.0,97350.0,0.0008638]
[1733065991354,0.00103785,97359.0,97354.0,0.07177419]
[1733065991840,0.12843785,97359.0,97350.0,0.0008638]
[1733065992099,0.13025513,97359.0,97350.0,0.0008638]
[1733065994497,0.13025513,97359.0,97358.0,0.002864]
[1733065994990,0.13025513,97359.0,97358.0,0.000864]
[1733065995217,0.13025513,97359.0,97358.0,0.003864]
[1733065996200,0.13025513,97359.0,97358.0,0.004864]
[1733065996669,0.13025513,97359.0,97358.0,0.001864]
[1733065996921,0.13025513,97359.0,97358.0,0.000864]
[1733065997151,0.13025513,97359.0,97358.0,0.002864]
[1733065997396,0.13025513,97359.0,97358.0,0.000864]
[1733065997633,0.13025513,97359.0,97358.0,0.002864]
[1733066000738,0.13025513,97359.0,97358.0,0.000864]
[1733066000988,0.13225513,97359.0,97358.0,0.000864]
[1733066001458,0.13025513,97359.0,97358.0,0.000864]
[1733066001675,0.13025513,97359.0,97358.0,0.002864]
[1733066001922,0.00285513,97359.0,97358.0,0.002864]
[1733066002879,0.00103785,97359.0,97358.0,0.002864]
[1733066007713,0.00103785,97360.0,97358.0,0.002864]
[1733066007933,0.00103785,97360.0,97359.0,0.205425]
[1733066008593,0.00103785,97360.0,97358.0,0.002864]
[1733066008811,0.00103785,97363.0,97359.0,0.205425]
[1733066009257,0.00103785,97363.0,97359.0,0.41085]
[1733066009725,0.00103785,97360.0,97359.0,0.206425]
[1733066009952,0.00103785,97362.0,97359.0,0.206425]
[1733066010171,0.00103785,97363.0,97359.0,0.205425]
[1733066010604,0.00103785,97360.0,97359.0,0.205425]
[1733066011086,0.00103785,97363.0,97359.0,0.206425]
[1733066011295,0.00103785,97363.0,97359.0,0.205425]
[1733066012612,0.00103785,97363.0,97358.0,0.000864]
[1733066012613,0.00203785,97363.0,97358.0,0.000864]
[1733066013057,0.00103785,97363.0,97358.0,0.000864]
[1733066013498,0.00103785,97363.0,97359.0,0.205425]
[1733066013741,0.00103785,97363.0,97358.0,0.000864]
[1733066014953,0.05083785,97359.0,97358.0,0.000864]
[1733066015187,0.13355513,97359.0,97358.0,0.000864]
[1733066015412,0.23640034,97359.0,97358.0,0.000864]
[1733066015657,0.23458306,97359.0,97358.0,0.000864]
[1733066015866,0.23458306,97359.0,97358.0,0.001864]
[1733066016081,0.23458306,97359.0,97358.0,0.003864]
[1733066016295,0.23458306,97359.0,97358.0,0.002864]
[1733066017873,0.23458306,97359.0,97358.0,0.000864]
[1733066018338,0.23458306,97359.0,97358.0,0.001864]
[1733066018641,0.23458306,97359.0,97358.0,0.000864]
[1733066019097,0.23658306,97359.0,97358.0,0.000864]
[1733066020427,0.24772739,97359.0,97358.0,0.000864]
[1733066025490,0.01418218,97359.0,97358.0,0.000864]
[1733066025705,0.00485513,97359.0,97358.0,0.000864]
[1733066027501,0.00285513,97359.0,97358.0,0.000864]
[1733066036982,0.00485513,97359.0,97358.0,0.000864]
[1733066038612,0.00285513,97359.0,97358.0,0.000864]
[1733066039092,0.00485513,97359.0,97358.0,0.000864]
[1733066039729,0.00285513,97359.0,97358.0,0.000864]
[1733066040165,0.00285513,97359.0,97358.0,0.001864]
[1733066040385,0.00285513,97359.0,97358.0,0.000864]
[1733066042227,0.00285513,97359.0,97358.0,0.001864]